Cogmind - Beta 13 @@@ ROGUE MODE // 2024.04.04 @ 19:39:12 Player: Spuddz Result: Self-destructed Performance ------------- Evolutions (2) 1000 Regions Visited (3) 600 Robots Destroyed (25) 125 Value Destroyed (734) 734 Prototype IDs (1) 20 Alien Tech Used (0) 0 Bonus (-45) -45 TOTAL SCORE: 2434 Bonus ------- Friendly Fire -45 Cogmind --------- Core Integrity 486/550 Matter 296/300 Energy 250/250 System Corruption 1% Temperature Cool (9) Movement Treading (320) Ox2 Location -8/Materials Parts ------- > --- POWER (1) -------- Ion Engine > --- PROPULSION (4) --- Light Treads Light Treads Aluminum Leg > --- UTILITY (4) ------ Improved Heat Sink Huge Storage Unit Hacking Suite > --- WEAPON (2) ------- Gauss Rifle > --- INVENTORY (25) --- Ion Engine Ion Engine Light Ion Engine Aluminum Leg Improved Medium Laser Light Assault Rifle Light Assault Rifle Peak State ------------ > --- POWER ------------ Ion Engine > --- PROPULSION ------- Light Treads Light Treads Light Treads Aluminum Leg > --- UTILITY ---------- Improved Heat Sink Huge Storage Unit Hacking Suite > --- WEAPON ----------- Improved Medium Laser Light Assault Rifle > --- INVENTORY -------- Ion Engine Ion Engine Light Ion Engine Aluminum Leg Light Assault Rifle Light Assault Rifle Gauss Rifle [Rating: 17] Favorites ----------- Power Ion Engine Engine Ion Engine Propulsion Light Treads Treads Light Treads Leg Aluminum Leg Utility Improved Heat Sink Device Improved Heat Sink Storage Small Storage Unit Hackware Hacking Suite Protection Light Armor Plating Weapon Light Assault Rifle Energy Gun Improved Medium Laser Ballistic Gun Light Assault Rifle Special Melee Weapon Datajack Build | -11 -10 -9 -8 ------- Run | Yrd Mat Mat Mat Slots Evolved 4 | . . 2 2 Power . | . . . . Propulsion 2 | . . . 2 Utility 2 | . . 2 . Weapon . | . . . . Parts Attached 29 | 7 4 12 6 Power 4 | 2 . 1 1 Engine 4 | 2 . 1 1 Core . | . . . . Reactor . | . . . . Propulsion 7 | 2 . 3 2 Treads 6 | 2 . 3 1 Leg 1 | . . . 1 Wheel . | . . . . Hover . | . . . . Flight . | . . . . Utility 7 | 1 . 5 1 Device 2 | . . 2 . Storage 3 | 1 . 2 . Processor . | . . . . Hackware 1 | . . . 1 Protection 1 | . . 1 . Artifact . | . . . . Weapon 11 | 2 4 3 2 Energy Gun 1 | . . . 1 Energy Cannon . | . . . . Ballistic Gun 8 | 2 2 3 1 Ballistic Cannon . | . . . . Launcher . | . . . . Special Weapon . | . . . . Impact Weapon . | . . . . Slashing Weapon . | . . . . Piercing Weapon . | . . . . Special Melee Weapon 2 | . 2 . . Unidentified Prototypes 1 | . . . 1 Parts Lost 8 | . . 5 3 Power 1 | . . . 1 Propulsion 2 | . . 1 1 Utility 2 | . . 2 . Weapon 3 | . . 2 1 Highest Loss Streak 3 | . . 3 2 To Critical Strikes . | . . . . Average Slot Usage (%) 80 | . 85 76 85 Engine 11 | . 14 11 9 Treads 24 | . 28 21 25 Leg 1 | . . . 7 Device 6 | . . 8 9 Storage 11 | . 14 11 9 Hackware 2 | . . . 7 Protection 1 | . . 2 . Ballistic Gun 22 | . 27 22 17 Naked Turns . | . . . . Heaviest Build 91 | 13 13 88 91 Greatest Support 60 | 40 40 40 60 Greatest Overweight (x) 2 | . . 2 2 Average Overweight (x) . | . . . 1 Largest Inventory Capacity 25 | 8 8 25 25 Average Capacity 12 | 7 8 9 25 Most Carried 9 | 5 7 9 8 Average Carried 6 | 2 4 7 6 Final Capacity 25 | 8 8 25 25 Final Carried 7 | 3 6 7 7 Class Distribution -------------------- 56% | Scavenger-Mutant 44% | Mutant Dominant Class ---------------- Mutant | -10/Materials Scavenger-Mutant | -9/Materials Scavenger-Mutant | -8/Materials Resources | -11 -10 -9 -8 ----------- Run | Yrd Mat Mat Mat Matter Collected 806 | 251 85 382 88 Remotely . | . . . . Salvage Created 925 | . 85 733 107 Parts 61 | . 6 50 5 Haulers Intercepted . | . . . . Recyclers Shooed . | . . . . Parts Field Recycled . | . . . . Retrieved Matter . | . . . . Parts Self-Destructed . | . . . . Prevented . | . . . . Kills | -11 -10 -9 -8 ------- Run | Yrd Mat Mat Mat Combat Hostiles Destroyed 20 | . 2 16 2 Guns 20 | . 2 16 2 Classes Destroyed 9 | . 2 6 1 Worker 1 | . . 1 . Builder 1 | . . 1 . Recycler 1 | . . 1 . Operator 1 | . 1 . . Watcher 1 | . . 1 . Swarmer 3 | . . 3 . Grunt 14 | . 2 11 1 Sentry 2 | . . 2 . Hunter 1 | . . . 1 Best Kill Streak 4 | . 2 4 1 Combat Bots Only 4 | . 2 4 1 Max Kills in Single Turn 1 | . 1 1 1 Gunslinging . | . . . . Exploded . | . . . . Melee . | . . . . Uniques/NPCs Destroyed . | . . . . Combat | -11 -10 -9 -8 -------- Run | Yrd Mat Mat Mat Hostile Shots Fired 159 | . 14 90 55 Missed 45 | . 2 23 20 Damage Taken 1458 | . 129 823 506 Core 204 | . 11 129 64 Absorbed by Shields . | . . . . Core Remaining (%) 87 | 100 95 67 . Volleys Fired 86 | . 12 58 16 Largest 2 | . 2 2 2 Hottest 76 | . 40 43 76 Shots Fired 164 | . 18 115 31 Gun 164 | . 18 115 31 Cannon . | . . . . Launcher . | . . . . Special . | . . . . Kinetic 161 | . 18 115 28 Thermal 3 | . . . 3 Explosive . | . . . . Electromagnetic . | . . . . Robot Hit Streak 12 | . 11 12 7 Robot Miss Streak 8 | . 1 2 8 Penetration Max . | . . . . Secondary Targets . | . . . . Shots Hit Robots 97 | . 15 68 14 Core Hits 51 | . 6 36 9 Critical Kills . | . . . . Critical Parts Destroyed . | . . . . Critical Strikes . | . . . . Melee Attacks . | . . . . Impact . | . . . . Slashing . | . . . . Piercing . | . . . . Sneak Attacks . | . . . . Combat Hostiles . | . . . . Follow-up Attacks . | . . . . Damage Inflicted 1230 | . 150 898 182 Guns 1219 | . 148 889 182 Cannons . | . . . . Explosions . | . . . . Melee . | . . . . Ramming 11 | . 2 9 . Kinetic 1170 | . 148 889 133 Thermal 49 | . . . 49 Explosive . | . . . . Electromagnetic . | . . . . Impact . | . . . . Slashing . | . . . . Piercing . | . . . . Highest Corruption 1 | . 1 . 1 Average Corruption 1 | . 1 . 1 Corruption Purged . | . . . . Corruption Blocked . | . . . . Overload Shots . | . . . . Overflow Damage . | . . . . Projectiles . | . . . . Explosions . | . . . . Melee . | . . . . Knockbacks . | . . . . Impact . | . . . . Kinetic . | . . . . Secondary . | . . . . Self-Inflicted Damage . | . . . . Shots . | . . . . Rammed 4 | . 1 3 . Targets Rammed 4 | . 1 3 . Kicked . | . . . . Crushed . | . . . . Highest Temperature 12 | . 12 6 2 Average Temperature 5 | . 6 3 2 Received Heat Transfer 648 | . 72 396 180 Siege Activations . | . . . . Robots Corrupted . | . . . . Combat Hostiles . | . . . . Parts Fried . | . . . . Impact Corruptions . | . . . . Robots Melted . | . . . . Combat Hostiles . | . . . . Parts Melted . | . . . . Heat Transferred 111 | . . . 111 Parts Sabotaged . | . . . . Parts Stolen . | . . . . Parts Stripped . | . . . . Power Chain Reactions . | . . . . Alert | -11 -10 -9 -8 ------- Run | Yrd Mat Mat Mat Peak Influence 361 | . 80 361 192 Initial 133 | . . 33 133 Average 153 | . 55 217 153 Maximum Alert Level 1 | . . 1 . Low Security (%) 68 | 100 100 32 100 Level 1 31 | . . 67 . Level 2 . | . . . . Level 3 . | . . . . Level 4 . | . . . . Level 5 . | . . . . High Security . | . . . . Max Security . | . . . . Squads Dispatched 5 | . . 3 2 Investigation 2 | . . 1 1 Extermination . | . . . . Reinforcement 2 | . . 2 . Assault . | . . . . Garrison 1 | . . . 1 Intercept . | . . . . Searches Triggered . | . . . . Construction Impeded . | . . . . Haulers Reinforced . | . . . . Active Scanning Responses . | . . . . Cargo Convoy Interrupts . | . . . . Stealth | -11 -10 -9 -8 --------- Run | Yrd Mat Mat Mat Distress Signals 3 | . . 3 . Communications Jammed . | . . . . Distress Signals . | . . . . Times Spotted 34 | . 4 24 6 Peak Tracking Total 5 | . 3 5 3 Tactical Retreats 2 | . . 2 . Traps | -11 -10 -9 -8 ------- Run | Yrd Mat Mat Mat Traps Triggered 2 | . 1 1 . Indirectly . | . . . . Trap Hack Attempts . | . . . . Triggered . | . . . . Disarmed . | . . . . Reprogrammed . | . . . . Reused . | . . . . Traps Extracted . | . . . . Installed . | . . . . Triggered . | . . . . Machines | -11 -10 -9 -8 ---------- Run | Yrd Mat Mat Mat Machines Disabled . | . . . . Max in Single Turn . | . . . . Machines Repaired . | . . . . Machines Dismantled . | . . . . Machines Sabotaged . | . . . . Overloaded Fab Kills . | . . . . Hacking | -11 -10 -9 -8 --------- Run | Yrd Mat Mat Mat Machines Accessed 3 | . 1 . 2 Terminals 2 | . 1 . 1 Fabricators . | . . . . Repair Stations . | . . . . Recycling Units . | . . . . Scanalyzers . | . . . . Garrison Access 1 | . . . 1 Total Hacks 14 | . 5 . 9 Successful 5 | . 1 . 4 Failed 8 | . 4 . 4 Catastrophic 1 | . . . 1 Database Lockouts 1 | . . . 1 Manual . | . . . . Terminals 11 | . 5 . 6 Fabricators . | . . . . Repair Stations . | . . . . Recycling Units . | . . . . Scanalyzers . | . . . . Garrison Access 3 | . . . 3 Terminal Hacks 5 | . 1 . 4 Record 4 | . . . 4 Zone Layout 1 | . 1 . . Fabricator Hacks . | . . . . Repair Station Hacks . | . . . . Recycling Unit Hacks . | . . . . Scanalyzer . | . . . . Garrison Access Hacks . | . . . . Unauthorized Hacks . | . . . . Terminals . | . . . . Fabricators . | . . . . Repair Stations . | . . . . Recycling Units . | . . . . Scanalyzers . | . . . . Garrison Access . | . . . . Data Cores Recovered 1 | . 1 . . Used . | . . . . Hacking Detections 3 | . 1 . 2 Full Trace Events 2 | . . . 2 Feedback Events 1 | . . . 1 Corruption 1 | . . . 1 Feedback Blocked . | . . . . Robot Schematics Acquired . | . . . . Robots Built . | . . . . Authchips . | . . . . Time . | . . . . Total Robot Build Rating . | . . . . Part Schematics Acquired . | . . . . Parts Built . | . . . . Authchips . | . . . . Time . | . . . . Total Part Build Rating . | . . . . Parts Repaired . | . . . . Time . | . . . . Parts Recycled . | . . . . Recycled Matter . | . . . . Retrieved Matter . | . . . . Retrieved Components . | . . . . Parts Scanalyzed . | . . . . Part Schematics Acquired . | . . . . Parts Damaged . | . . . . Bothacking | -11 -10 -9 -8 ------------ Run | Yrd Mat Mat Mat Used RIF Installer . | . . . . Robots Hacked . | . . . . Non-combat . | . . . . Combat . | . . . . Robot Hacks Applied . | . . . . Relay Couplers Released . | . . . . Fabnet Peak Effective % . | . . . . Robots Rewired . | . . . . Allies Hacked . | . . . . Hacks Repelled . | . . . . Allies | -11 -10 -9 -8 -------- Run | Yrd Mat Mat Mat Total Allies . | . . . . Largest Group . | . . . . Highest-Rated Group . | . . . . Highest-Rated Ally . | . . . . Total Orders . | . . . . Ally Attacks . | . . . . Total Damage . | . . . . Kills . | . . . . Allies Corrupted . | . . . . Allies Melted . | . . . . Intel | -11 -10 -9 -8 ------- Run | Yrd Mat Mat Mat Robot Analysis Total . | . . . . Derelict Logs Recovered . | . . . . Drone Launches . | . . . . Drone Recoveries . | . . . . Exploration | -11 -10 -9 -8 ------------- Run | Yrd Mat Mat Mat Turns Passed 1337 | 62 315 630 330 Spaces Moved 561 | 38 164 252 107 Core 12 | 12 . . . Treads 549 | 26 164 252 107 Legs . | . . . . Wheels . | . . . . Hover . | . . . . Flight . | . . . . Fastest Speed 50 | 50 160 160 240 Average Speed 179 | 125 160 168 254 Slowest Speed 320 | 160 160 320 320 Overloaded Moves . | . . . . Propulsion Burnouts . | . . . . Robots Hopped . | . . . . Cave-ins Triggered . | . . . . Exploration Rate (%) 17 | 4 32 25 10 Regions Visited 3 Branch Regions . Pre-discovered Areas . | . . . . Known Exits Taken . | . . . . Unknown Exits Taken 3 | 1 1 1 . Scrap Searched . | . . . . Spaces Dug . | . . . . Terrain Destroyed . | . . . . Melee . | . . . . Projectile . | . . . . AOE . | . . . . Terrain Rammed . | . . . . Walls Destroyed . | . . . . Machines Disabled . | . . . . Actions | -11 -10 -9 -8 --------- Run | Yrd Mat Mat Mat Total 736 | 51 199 348 138 Wait 32 | . 14 13 5 Move 558 | 37 163 251 107 Hop . | . . . . Pick Up 22 | 7 4 7 4 Fast Attach 4 | 2 . 2 . Attach 13 | 4 . 5 4 Detach . | . . . . Swap 12 | 1 4 5 2 Drop 5 | . 1 4 . Fire 86 | . 12 58 16 Melee . | . . . . Ram . | . . . . Kick . | . . . . Crush 4 | . 1 3 . Escape Stasis . | . . . . Rewire . | . . . . Trap . | . . . . Miscellaneous . | . . . . Route ------- -11/Scrapyard -10/Materials -9/Materials -8/Materials History --------- Turn | Location | Event 9 | -11/Scrapyard | Discovered new exit (range 16) 63 | -11/Scrapyard | Entered Materials 316 | -10/Materials | Build established: Mutant 320 | -10/Materials | Discovered new exit (range 16) 378 | -10/Materials | Entered another Materials area 378 | -9/Materials | Evolved 2 slots: Utility x2 559 | -9/Materials | Met 8R-AWN 897 | -9/Materials | Lost 3 parts (1u2w) 908 | -9/Materials | Build established: Scavenger-Mutant 992 | -9/Materials | Discovered new exit (range 6) 1008 | -9/Materials | Entered another Materials area 1008 | -8/Materials | Evolved 2 slots: Propulsion x2 1242 | -8/Materials | Central database locked down 1326 | -8/Materials | Garrison activated, responded to threat 1338 | -8/Materials | Self-destructed Last Messages --------------- system of eight planets, including [Earth], the origin of [Human] civilization. Many of the system's planets and moons were colonized to some degree during the 2070-2110 push for colonization to alleviate [Human] civilization's growing toll on [Earth]'s resources. ALERT: Central database lockdown, local access denied. Feedback: System corruption (+1%). Connecting with Garrison Access... ALERT: Suspicious activity at Garrison Access M001. Dispatching Investigation squad. Slug penetrates Wall. Y-45 Defender calls for garrison reinforcements. ALERT: Activating Garrison Access M001. G-47 Trooper emerges from the garrison. Lgt. Assault Rifle destroyed. G-47 Trooper suffers critical hit (Burn). Lgt. Treads destroyed. Map ----- +----------------------------------------------------+ | ????????????????????+ #???? | | ????????????????????###"## #???? | | ?????????????????????# ??# #???? | | ?????????????????????#???# #???? | | ?????????????????????????# #???? | | ?????????????????????????# #???? | | ?????????????????????????# #???? | | ?????????????????????????# #???? | | ?????????????????????????# #???? | | ?????????????????????#####+##??? | | ?????????##??????????# """ #??? | | ?????????# ##+##??# """ #??? | | ?????????# ?# """ #??? | | ??????????? # #??? | | ??????????????????# + ! #??? | | ??????????????????# # #??? | | ??????????????????# Y####+###??? | | ??????????????????# ####?? | | ??????????????????# """#?? | | ??????????????????# !!! G"#?? | | ??????????????????# !!!g """#?? | | ??????????????????# !! g####?? | | ??????????????????# #????? | | ??????????????????# #????? | | ??????????????????# # ###??? | | ??????????????????# # @ #??? | | ??????????????????# ?#! !#??? | | ??????????????????##?##!!!!##??? | | ??????????????????????######???? | | ???????????????????????????????? | | ???????????????????????????????? | | ???????????????????????????????? | | | | | | | | | | | | | | | | | | | | | | | | | | | | | | | | | | | | | +----------------------------------------------------+ Best States ------------- Heat Dissipation 45 Energy Generation 10 Energy Capacity 250 Matter Stores 300 Matter Capacity 300 Sight Range 16 Terrain Scan Density 10 Armor Coverage 150 Evasion (%) 50 Recoil Reduction 3 Offensive Hacking 10 Item Schematics ----------------- None Robot Schematics ------------------ None Fabricated ------------ Nothing Alien Tech Used ----------------- None Achievements -------------- None Challenges ------------ None Game ------ Seed ThrusterBackupTube Manual? 0 Play Time 00:15:05 Cumulative 3.8 hours Start 2024.04.04 @ 19:24:39 End 2024.04.04 @ 19:39:12 Sessions 1 Manual Loads 0 Difficulty Rogue Special Mode None Game No. 9 Rogue 9 Adventurer 0 Explorer 0 Win Type - Total 0 Types 0/0/0/0/0/0/0/0/0 Lore% 3 Gallery% 9 Achievement% 10 Wizard Run 0 Options --------- Layout 1 ASCII 0 Keyboard 0 Movement Mouse Keybinds 0 Fullscreen 2 Font 32/Terminus Map View 50x35 Zoom Use 0% Tactical HUD 0 Map Filters NONE Filters NONE Steam 1 RUN: bd87032d-2d54-47d8-9e97-7928cd2f651f